[Event "German Bundesliga 2022-23"]
[Site "Germany"]
[Date "2022.10.21"]
[Round "7.7"]
[White "Dudin, Gleb"]
[Black "Yankelevich, Lev"]
[Result "0-1"]
[ECO "A21"]
[WhiteElo "2471"]
[BlackElo "2484"]
[Annotator "TA"]
[PlyCount "106"]
[EventDate "2022.10.21"]
[EventType "team-tourn"]
[EventCountry "GER"]
[SourceTitle "playchess.com"]
[Source "ChessBase"]
[SourceQuality "1"]
[TimeControl "40/6000+30:3000+30"]

{[%evp 9,106,16,18,24,27,21,22,23,23,28,27,27,18,18,25,18,28,29,27,16,28,21,35,26,44,-12,0,-54,-46,-73,-75,-81,-79,-272,-218,-204,-28,-83,0,5,0,0,38,0,0,0,0,-4,0,0,0,0,0,0,73,71,174,171,227,230,336,197,202,199,239,161,298,0,237,17,27,31,33,9,22,-26,-28,-28,-28,-141,-156,-162,-158,-152,-146,-151,-153,-588,-579,-444,-504,-573,-530,-1092,-1085,-972,-550,-952,-901]} 1. c4 {[%emt 0:00:16]} e5 {[%emt 0:00:08][%cal Be7e5,Be5e4][%mdl 32]} 2. Nc3 {[%emt 0:01:32]} Bb4 {[%emt 0:00:05]} 3. Nd5 {[%emt 0:00:23]} Be7 {[%emt 0:02:02]} 4. Nf3 {[%emt 0:04:12]} d6 {[%emt 0:00:52]} 5. d4 {[%emt 0:00:15]} e4 {[%emt 0:02:17]} 6. Nd2 {[%emt 0:00:08] A21: English Opening: 1...e5 2 Nc3.} f5 {[%emt 0:00:06]} 7. Nb1 {[%emt 0:01:23]} Nf6 {[%emt 0:05:40]} 8. Nxe7 {[%emt 0:06:25] The position is equal.} Qxe7 {[%emt 0:00:08]} 9. Nc3 {[%emt 0:00:20]} c6 {[%emt 0:11:57]} 10. e3 {[%emt 0:02:44]} O-O {[%emt 0:04:26] [#]} 11. Be2 $146 {[%emt 0:00:25]} ({Predecessor:} 11. d5 c5 12. b3 Nbd7 13. Bb2 Ne5 14. Qd2 Bd7 15. Be2 Be8 16. f4 exf3 17. gxf3 {½-½ (39) Yu,J (2209)-Wang,W (2111) Philadelphia 2017}) 11... Be6 {[%emt 0:04:01]} 12. O-O {[%emt 0:00:46]} Qf7 {[%emt 0:02:09]} 13. b3 {[%emt 0:04:37]} d5 {[%emt 0:00:30][%cal Rd5c4]} 14. Ba3 {[%emt 0:03:40]} Re8 {[%emt 0:02:46][%cal Rd5c4]} 15. Rc1 {[%emt 0:02:18]} Nbd7 {[%emt 0:00:18][%cal Rd5c4]} 16. Na4 {[%emt 0:13:59]} Rad8 {[%emt 0:31:19]} 17. Qd2 {[%emt 0:39:33]} (17. Bd6 $14) 17... Nf8 {[%emt 0:00:42]} (17... dxc4 {with more complications.} 18. bxc4 Ne5 19. Nc5 Bc8) 18. Bc5 {[%emt 0:01:56]} (18. Bxf8 $11 Rxf8 19. Nc5) 18... Ng6 $15 {[%emt 0:08:45]} 19. Bxa7 {[%emt 0:07:37]} dxc4 {[%emt 0:01:45][%cal Bd5c4,Bc4b3][%mdl 32]} (19... b5 20. cxb5 Qxa7 21. Rxc6 $11) 20. Bb6 {[%emt 0:09:38]} (20. Bxc4 $2 Bxc4 21. Rxc4 b5 22. Rxc6 bxa4 $19) 20... Ra8 {[%emt 0:00:00]} 21. Ba5 $2 {[%emt 0:00:35]} (21. Bxc4 Bxc4 22. Rxc4 Nd5) (21. Nc3 $17) 21... cxb3 {[%emt 0:00:36]} 22. Nb6 {[%emt 0:00:08]} Rab8 {[%emt 0:04:44]} (22... bxa2 23. Nxa8 Rxa8 24. g3) (22... b2 23. Rb1 $15) ({Black should play} 22... f4 $19 {Threatens to win with ...f3.} 23. Nxa8 Rxa8 24. exf4 (24. axb3 f3 $17) 24... bxa2) 23. Nc4 {[%emt 0:03:44]} (23. axb3 $11 Bxb3 24. Rb1) 23... Bxc4 {[%emt 0:01:04]} (23... bxa2 $17 24. Nd6 Qe7 25. Nxe8 Qxe8) 24. Bxc4 $11 {[%emt 0:00:06]} Nd5 {[%emt 0:00:02]} 25. Bxb3 {[%emt 0:03:24]} Nh4 {[%emt 0:02:00] Pair of Knights!} 26. Bc7 {[%emt 0:01:17]} Qxc7 {[%emt 0:01:48]} 27. Bxd5+ {[%emt 0:00:02]} Kh8 {[%emt 0:00:02]} 28. Bb3 {[%emt 0:00:30]} Qe7 {[%emt 0:01:29] White must now prevent ...Qg5.} (28... Qd6 {keeps more tension.} 29. Kh1 Rbd8 30. Qa5 Qg6) 29. Kh1 {[%emt 0:00:43]} Rbd8 {[%emt 0:00:58][%cal Oc6c5]} 30. Qa5 {[%emt 0:01:12] Against c5} Rd6 {[%emt 0:02:35]} 31. Rc5 {[%emt 0:00:28]} Qg5 {[%emt 0:03:06]} (31... Rh6 $11 32. Rg1 Rf8) 32. Rg1 $1 $16 {[%emt 0:00:56]} Rh6 {[%emt 0:01:42]} (32... Rd7 $16) 33. Qc7 $18 {[%emt 0:00:08]} Rf8 {[%emt 0:06:59]} (33... Qf6 $142 34. Qxb7 Qd6) 34. Qxb7 {[%emt 0:00:42]} Qh5 {[%emt 0:05:45]} (34... Qf6 {keeps fighting.} 35. Qc7 f4) 35. Qe7 {[%emt 0:01:01]} (35. Rxc6 $142 Rxc6 36. Qxc6) 35... Ng6 {[%emt 0:02:46][%csl Gh6][%cal Rh5h2,Bh4g6,Bg6f4,Bf4e2][%mdl 32]} 36. Qc7 {[%emt 0:00:13] And now g4 would win.} Qe2 {[%emt 0:01:03]} 37. Rc2 {[%emt 0:00:44]} (37. Qxc6 $2 Rxh2+ $3 {[%mdl 512]} 38. Kxh2 Qh5+ 39. Kg3 Qh4#) (37. Rxc6 Qxf2 38. Be6 Qxe3 $11) 37... Qh5 {[%emt 0:00:06]} (37... Qg4 {was necessary.} 38. Qg3 (38. Rxc6 f4 $14) 38... Qxg3 39. fxg3 Ne7) 38. Rc5 {[%emt 0:00:40]} (38. h3 $6 Qh4 39. a4 (39. Rxc6 Qxf2 40. Rc3 f4 $11) (39. Qxc6 Nf4 $15) 39... f4 40. Qxc6 f3 $18) 38... Qe2 $1 {[%emt 0:00:04]} 39. Qg3 {[%emt 0:00:46]} (39. Qxc6 $2 {[#] leads to mate.} Rxh2+ $3 {[%mdl 512]} 40. Kxh2 Qh5+ 41. Kg3 Qh4#) ({Inferior is} 39. Rxc6 Qxf2 40. Rgc1 f4 $11) ({Don't do} 39. Rc2 $6 Qg4 40. Qg3 (40. Rxc6 f4 $14) 40... Qxg3 41. fxg3 Ne7) (39. Bc4 $18 Qg4 40. Qg3 (40. Rxc6 f4 $14)) 39... f4 $11 {[%emt 0:01:03]} 40. exf4 {[%emt 0:00:25]} Nxf4 {[%emt 0:00:19] Strongly threatening ...Nd3.} 41. h3 {[%emt 0:17:35] Threatening Re5.} Qd3 {[%emt 0:19:03]} (41... Qb2 $5 {[%cal Rb2d4]}) 42. Kh2 {[%emt 0:23:48]} (42. Qxd3 $142 exd3 43. Bc4) 42... Qxd4 {[%emt 0:11:13]} 43. Rc4 {[%emt 0:06:13]} Qe5 {[%emt 0:00:05]} 44. Kh1 {[%emt 0:03:33]} (44. Re1 $11 {keeps the balance.} Rg6 45. Rexe4 Rxg3 46. fxg3) 44... Qf5 $36 {[%emt 0:01:14][%cal Rf4h3][%mdl 2048] ( -> ...Nxh3!). Black is really pushing.} 45. Kh2 {[%emt 0:01:16]} Ne2 $1 {[%emt 0:00:35][%csl LRf2,LRg1,LRg3]} 46. Qe3 {[%emt 0:00:05]} Nxg1 {[%emt 0:09:23] Black is more active.} (46... Qxf2 $2 47. Qxf2 Rxf2 48. Rxe4 $18) 47. Kxg1 {[%emt 0:00:01]} Rhf6 {[%emt 0:00:16][%cal Rf5f2]} 48. Bc2 $2 {[%emt 0:01:31]} (48. Rc2 $17 {is more resistant.}) 48... Qxf2+ $19 {[%emt 0:00:53] Black is clearly winning.} 49. Qxf2 {[%emt 0:00:02]} Rxf2 {[%emt 0:00:05]} 50. Bxe4 {[%emt 0:00:50]} R2f4 {[%emt 0:01:32][%cal Oc6c5]} 51. g3 {[%emt 0:00:07]} Rf1+ {[%emt 0:00:18]} 52. Kh2 {[%emt 0:00:05]} R8f2+ {[%emt 0:00:54]} 53. Bg2 {[%emt 0:00:04]} Rd1 {[%emt 0:02:10] A wild game.  Weighted Error Value: White=0.58/Black=0.24 (precise)} 0-1

[Event "German Bundesliga 2022-23"]
[Site "Germany"]
[Date "2022.10.21"]
[Round "7.8"]
[White "Berchtenbreiter, Maximilian"]
[Black "Kuznecovs, Nikita"]
[Result "1/2-1/2"]
[ECO "A46"]
[WhiteElo "2509"]
[BlackElo "2301"]
[Annotator "TA"]
[PlyCount "204"]
[EventDate "2022.10.21"]
[EventType "team-tourn"]
[EventCountry "GER"]
[SourceTitle "playchess.com"]
[Source "ChessBase"]
[SourceQuality "1"]
[TimeControl "40/6000+30:3000+30"]

{[%evp 43,204,-32,-23,-43,0,0,0,0,41,0,58,-7,-19,-35,0,-81,-86,-97,-71,-97,-65,-109,-62,-61,-47,-270,-266,-484,-484,-484,-111,-122,-12,-5,-2,-6,0,0,192,182,178,178,174,168,199,186,177,0,0,-39,-25,-23,0,-128,-8,-8,-8,-8,0,0,0,0,0,0,0,0,0,0,0,0,0,0,0,0,0,0,0,0,0,0,0,0,0,-8,0,0,0,0,0,0,0,0,0,0,0,0,0,0,0,0,0,0,0,0,0,0,0,0,0,0,0,0,0,0,0,0,0,0,0,0,0,0,0,0,0,0,0,0,0,0,0,0,0,0,0,0,0,0,0,0,0,0,0,0,0,0,0,0,0,0,0,0,0,0,0,0,0,0,0,0,0,0,0]} 1. Nf3 {[%emt 0:00:02]} Nf6 {[%emt 0:00:10]} 2. g3 {[%emt 0:01:04]} b5 {[%emt 0:00:07]} 3. Bg2 {[%emt 0:00:17]} Bb7 {[%emt 0:00:07]} 4. O-O {[%emt 0:00:20]} e6 {[%emt 0:00:09]} 5. d4 {[%emt 0:00:59]} c5 {[%emt 0:00:05]} 6. c3 {[%emt 0:00:37]} Be7 {[%emt 0:00:08]} 7. a4 {[%emt 0:00:13]} b4 {[%emt 0:00:40]} 8. Nbd2 {[%emt 0:02:23]} O-O {[%emt 0:12:43]} 9. a5 {[%emt 0:01:35]} Na6 {[%emt 0:05:43]} 10. cxb4 {[%emt 0:13:02]} Nxb4 {[%emt 0:17:01]} 11. dxc5 {[%emt 0:00:33]} Bxc5 {[%emt 0:04:39]} 12. Nb3 {[%emt 0:00:05]} Be7 {[%emt 0:00:08]} 13. Be3 {[%emt 0:00:58]} Nbd5 {[%emt 0:03:45]} 14. Bd4 {[%emt 0:03:56]} d6 {[%emt 0:14:56]} 15. a6 {[%emt 0:01:29]} Bc8 {[%emt 0:02:30]} 16. Na5 {[%emt 0:23:39]} e5 {[%emt 0:02:27]} 17. Nxe5 {[%emt 0:10:08]} dxe5 {[%emt 0:00:12]} 18. Bxe5 {[%emt 0:00:07]} Be6 {[%emt 0:04:14]} 19. Nc6 {[%emt 0:00:40]} Qe8 {[%emt 0:00:18]} 20. Nxe7+ {[%emt 0:09:22]} Qxe7 {[%emt 0:08:04]} 21. Bxf6 {[%emt 0:00:34]} Nxf6 {[%emt 0:00:30]} 22. Bxa8 {[%emt 0:00:04]} Rxa8 {[%emt 0:00:06]} 23. Qd3 {[%emt 0:01:30]} Bg4 {[%emt 0:05:17]} 24. Rfe1 {[%emt 0:00:51]} Rd8 {[%emt 0:01:37]} 25. Qc4 {[%emt 0:00:04]} Re8 {[%emt 0:01:54]} 26. Rac1 {[%emt 0:12:37]} (26. b4 $5 {[%cal Rc4c5]}) 26... Bh3 {[%emt 0:15:48]} (26... Qd6 $11) 27. Rc3 {[%emt 0:13:29]} (27. Qc5 $14) 27... Qd6 $11 {[%emt 0:01:55]} 28. b4 {[%emt 0:06:14]} Re4 {[%emt 0:03:15]} 29. Qc5 {[%emt 0:02:56]} (29. Qc6 $11 Qxb4 30. Rcc1) 29... Qxa6 $17 {[%emt 0:01:12]} 30. b5 {[%emt 0:02:33]} Qa5 {[%emt 0:01:50]} 31. f3 {[%emt 0:01:13]} Re8 {[%emt 0:00:27]} 32. Rcc1 {[%emt 0:01:23]} h5 {[%emt 0:00:44]} (32... Nd7 $17 33. Qd4 h6) 33. Ra1 $15 {[%emt 0:00:58]} Qd2 {[%emt 0:01:45]} 34. Kf2 $2 {[%emt 0:00:27]} ({But not} 34. Qxa7 $2 Rxe2 35. Rxe2 Qxe2 $19) (34. Rad1 $15 Qa5 35. Ra1) 34... Nd7 $19 {[%emt 0:01:52]} 35. Qxa7 $2 {[%emt 0:00:52]} (35. Qc1 Qd6 36. Ra6 Qd4+ 37. e3) 35... Ne5 $1 $19 {[%emt 0:00:11]} 36. Ra3 {[%emt 0:00:21]} Kh7 $2 {[%emt 0:01:13]} (36... Bf5 $1 $19 {is more deadly. Strongly threatening ...Nd3+.} 37. Qe3 Ng4+ $1 {[%mdl 512]} 38. fxg4 Rxe3 39. Rxe3 hxg4) 37. Qc5 $17 {[%emt 0:00:21]} Qb2 {[%emt 0:00:28]} ({Black should try} 37... Bf5 $1 $17 {Threatens to win with ...Nd3+.} 38. Kf1 g6) 38. Re3 $1 $11 {[%emt 0:00:41]} f6 {[%emt 0:00:17]} 39. Qd5 {[%emt 0:00:43]} Kh8 {[%emt 0:00:58]} 40. Rd1 {[%emt 0:00:35]} Kh7 $2 {[%emt 0:00:32]} (40... Be6 $11 {and Black is okay.} 41. Qc5 Rc8) 41. Qb3 $18 {[%emt 0:01:46]} Qxb3 {[%emt 0:16:20]} 42. Rxb3 {[%emt 0:00:03]} Be6 {[%emt 0:00:15]} 43. Rb4 {[%emt 0:00:05]} Kg6 {[%emt 0:02:35]} 44. b6 {[%emt 0:00:45]} Rb8 {[%emt 0:01:19]} 45. e4 $2 {[%emt 0:16:03]} (45. b7 $18) 45... Nxf3 $1 $11 {[%emt 0:01:54]} 46. Rd6 {[%emt 0:00:16]} Ne5 $1 {[%emt 0:00:09]} 47. b7 {[%emt 0:03:03]} Bd7 {[%emt 0:06:16]} 48. Rd5 {[%emt 0:09:20] [#]} (48. Rbb6 $1 $11 {was the only way to keep the balance.}) 48... Kf7 {[%emt 0:00:55]} ({Reject} 48... Bc6 $6 {[#]} 49. Rxe5 $1 fxe5 50. Rb6 Rxb7 51. Rxc6+ Kf7 52. Rc5 $11) ({Better is} 48... Ng4+ $1 $17 49. Kf3 Bc6) 49. Rb6 $11 {[%emt 0:00:25]} Ke7 {[%emt 0:05:21]} 50. Kg1 {[%emt 0:06:06]} Bh3 {[%emt 0:06:34]} 51. Kf2 {[%emt 0:03:07]} Bg4 {[%emt 0:00:25]} 52. h4 {[%emt 0:02:20]} Bd7 {[%emt 0:00:25]} 53. Kg1 $1 {[%emt 0:00:28]} Bh3 {[%emt 0:00:35]} 54. Kf2 {[%emt 0:04:35]} Bg4 {[%emt 0:00:08]} 55. Kg1 $1 {[%emt 0:00:33]} Nd7 {[%emt 0:04:47]} 56. Rb4 {[%emt 0:01:05]} Kd8 {[%emt 0:00:30]} 57. Rd2 {[%emt 0:00:37]} Be6 {[%emt 0:01:36]} 58. Rd6 {[%emt 0:04:56]} Bg4 {[%emt 0:04:13]} 59. Rd2 {[%emt 0:00:16]} Ke8 {[%emt 0:00:51]} 60. Rc2 {[%emt 0:01:33]} Ne5 {[%emt 0:00:14]} 61. Rb6 {[%emt 0:00:40]} Bd7 {[%emt 0:02:24]} 62. Rc5 {[%emt 0:00:30]} Kd8 {[%emt 0:00:40]} 63. Rc3 {[%emt 0:00:36]} Ba4 {[%emt 0:00:32]} 64. Ra6 {[%emt 0:01:29]} Bc6 $1 {[%emt 0:01:50]} 65. Raxc6 {[%emt 0:00:11]} Nxc6 {[%emt 0:00:07]} 66. Rxc6 {[%emt 0:00:03]} Rxb7 {[%emt 0:00:05]} 67. Kf2 {[%emt 0:00:25]} Kd7 {[%emt 0:01:36]} 68. Rc5 {[%emt 0:00:08]} g6 {[%emt 0:00:11]} 69. Kf3 {[%emt 0:00:18]} Rb3+ {[%emt 0:00:12]} 70. Kf4 {[%emt 0:00:04]} Rb1 {[%emt 0:00:19]} 71. Ra5 {[%emt 0:00:07]} Rf1+ {[%emt 0:00:21]} 72. Ke3 {[%emt 0:00:03]} Re1+ {[%emt 0:00:21]} 73. Kf4 $1 {[%emt 0:00:09]} Ke6 {[%emt 0:01:36]} 74. Ra7 {[%emt 0:00:38]} g5+ {[%emt 0:01:12]} 75. hxg5 {[%emt 0:00:03]} Rf1+ {[%emt 0:00:04]} 76. Ke3 {[%emt 0:00:03]} fxg5 {[%emt 0:00:06]} 77. Rh7 {[%emt 0:01:44]} Rh1 {[%emt 0:00:33]} 78. Kf3 {[%emt 0:00:17]} Kf6 {[%emt 0:00:06]} 79. Rh6+ {[%emt 0:01:54]} Kg7 {[%emt 0:00:05]} 80. Rd6 {[%emt 0:00:05]} Rf1+ {[%emt 0:00:04]} 81. Kg2 {[%emt 0:00:16]} Rf6 {[%emt 0:00:05]} 82. Rd5 {[%emt 0:01:51]} Kg6 {[%emt 0:00:07]} 83. Rd8 {[%emt 0:00:09]} g4 {[%emt 0:00:49]} 84. Rg8+ {[%emt 0:00:13]} Kh7 {[%emt 0:00:09]} 85. Rb8 {[%emt 0:00:41]} Re6 {[%emt 0:01:13]} 86. Rb4 {[%emt 0:00:08]} Kg6 {[%emt 0:00:07]} 87. Kf2 {[%emt 0:00:01]} Rf6+ {[%emt 0:00:07]} 88. Kg2 {[%emt 0:00:02]} Rc6 {[%emt 0:00:07]} 89. Rb5 {[%emt 0:00:42]} Rc2+ {[%emt 0:00:19]} 90. Kf1 {[%emt 0:00:06]} Rc3 {[%emt 0:03:40]} 91. Rb6+ {[%emt 0:01:17]} Kg7 {[%emt 0:00:58]} 92. Kg2 {[%emt 0:00:13]} Rc2+ {[%emt 0:00:27]} 93. Kf1 {[%emt 0:00:11]} Rc5 {[%emt 0:00:05]} 94. Kf2 {[%emt 0:00:36]} Kf7 {[%emt 0:00:04]} 95. Ra6 {[%emt 0:00:59]} Rc2+ {[%emt 0:00:36]} 96. Kf1 {[%emt 0:02:03]} Rc4 {[%emt 0:00:10]} 97. Rh6 {[%emt 0:00:11]} Rc5 {[%emt 0:00:05]} 98. Rd6 {[%emt 0:00:27]} Re5 {[%emt 0:00:07]} (98... Ke7 $5 {[%cal Re7d6]} 99. Rb6 Rc3 $11) 99. Rd4 {[%emt 0:00:12]} Kf6 {[%emt 0:00:08]} 100. Kf2 {[%emt 0:00:05]} Ra5 {[%emt 0:00:07]} 101. Ke3 {[%emt 0:01:26]} Ra3+ {[%emt 0:00:15]} 102. Rd3 {[%emt 0:00:15]} Ra1 {[%emt 0:02:05]} 1/2-1/2

[Event "German Bundesliga 2022-23"]
[Site "Germany"]
[Date "2022.11.25"]
[Round "7.8"]
[White "Reuker, Jari"]
[Black "Zelcic, Robert"]
[Result "0-1"]
[ECO "B10"]
[WhiteElo "2432"]
[BlackElo "2496"]
[Annotator "TA"]
[PlyCount "110"]
[EventDate "2022.10.21"]
[EventType "team-tourn"]
[EventCountry "GER"]
[SourceTitle "playchess.com"]
[Source "ChessBase"]
[SourceQuality "1"]
[TimeControl "40/6000+30:3000+30"]

{[%evp 9,110,-8,8,-1,19,11,11,0,0,3,22,11,9,10,14,10,22,16,37,15,36,37,54,50,47,43,37,35,36,11,12,0,2,-99,-92,-99,-99,-99,-92,-97,-96,-95,-100,-98,-103,-102,-80,-80,-73,-80,-80,-80,-80,-80,-80,-182,-182,-228,-202,-223,-202,-235,-235,-249,-249,-487,-249,-249,-249,-1117,-882,-1285,-1278,-1258,-1258,-1216,-1174,-1190,-1180,-1217,-1217,-1116,-1093,-4594,-1623,-2489,-614,-1810,-1079,-1278,-1183,-7564,-6263,-5211,-2127,-4170,-3088,-29965,-5302,-29984,-29985,-29985,-29986]} 1. e4 {[%emt 0:00:05]} c6 {[%emt 0:00:11]} 2. Nf3 {[%emt 0:00:19]} d5 {[%emt 0:00:18]} 3. d3 {[%emt 0:00:06]} dxe4 {[%emt 0:03:16]} 4. dxe4 {[%emt 0:00:20]} Qxd1+ {[%emt 0:00:14]} 5. Kxd1 {[%emt 0:00:05]} Nf6 {[%emt 0:00:13]} 6. Nbd2 {[%emt 0:00:09] B10: Caro-Kann: 2 d3 and 2 c4.} g6 {[%emt 0:02:13]} 7. Ne5 {[%emt 0:00:32]} Bh6 {[%emt 0:00:48]} 8. Bc4 {[%emt 0:00:30] The position is equal.} O-O {[%emt 0:00:18] [#]} 9. Re1 $146 {[%emt 0:01:50]} ({Predecessor:} 9. f3 Nbd7 10. Nd3 Rd8 11. Bb3 b5 12. a4 Bb7 13. e5 Nd5 14. Bxd5 cxd5 15. axb5 {½-½ (34) Fantinel,T (2376)-Pi Pares,A (2222) Barcelona 2022}) 9... b5 {[%emt 0:01:09] Prevents a4.} 10. Bd3 {[%emt 0:07:50]} Nfd7 {[%emt 0:04:36]} 11. Nxd7 {[%emt 0:01:55]} Nxd7 {[%emt 0:00:10][%cal Bb8d7,Bd7f6,Bf6d5,Bd5c3][%mdl 32]} 12. Nb3 {[%emt 0:04:15]} Bg7 {[%emt 0:03:25]} 13. c3 {[%emt 0:16:32]} a6 {[%emt 0:36:00]} 14. Be3 {[%emt 0:07:14]} f5 {[%emt 0:00:15]} 15. f4 {[%emt 0:10:55]} fxe4 {[%emt 0:20:46]} 16. Bxe4 {[%emt 0:00:27]} Nf6 {[%emt 0:00:04]} 17. Bxc6 {[%emt 0:05:36]} Bg4+ {[%emt 0:00:07]} 18. Kc1 {[%emt 0:04:35]} Rac8 {[%emt 0:00:28]} 19. Bb7 {[%emt 0:05:07]} Rc7 {[%emt 0:00:16]} 20. Bxa6 {[%emt 0:05:07][%cal Oe3d4] Strongly threatening Bd4!} Nd5 {[%emt 0:03:06][%cal Od5c3] And now ...Nxc3! would win.} 21. Bxb5 {[%emt 0:08:26] [#]} (21. Bd4 $11) 21... Nxc3 $1 $17 {[%emt 0:00:45][%mdl 64] Demolition. Black is much more active.} 22. bxc3 {[%emt 0:08:43]} Bxc3 {[%emt 0:00:06]} 23. Bb6 {[%emt 0:04:44]} Rcc8 {[%emt 0:03:09]} 24. Rxe7 {[%emt 0:07:24]} Bxa1+ {[%emt 0:00:57]} 25. Kd2 {[%emt 0:01:25]} Bc3+ {[%emt 0:05:40]} 26. Ke3 {[%emt 0:00:24]} Bf6 {[%emt 0:00:09] Inhibits a4.} 27. Rc7 {[%emt 0:04:32]} Rxc7 {[%emt 0:01:38]} 28. Bxc7 {[%emt 0:00:01]} Rc8 {[%emt 0:00:13] Against a4} 29. Be5 {[%emt 0:03:59]} Bxe5 {[%emt 0:02:12]} 30. fxe5 {[%emt 0:00:02][%mdl 4096] Endgame KRB-KBN} Be6 {[%emt 0:00:15]} 31. Nd4 {[%emt 0:00:57]} Bxa2 {[%emt 0:05:07]} 32. e6 {[%emt 0:00:05]} (32. Bc6 $17 {keeps fighting.}) 32... Kf8 $19 {[%emt 0:02:00]} 33. Bd7 {[%emt 0:00:36]} (33. h4 {was called for.}) 33... Rc1 {[%emt 0:01:02]} 34. Kf4 {[%emt 0:01:30]} Rc5 {[%emt 0:02:18]} 35. h4 {[%emt 0:00:12]} Bd5 {[%emt 0:01:42]} 36. g4 {[%emt 0:00:26]} Ke7 {[%emt 0:03:08]} 37. h5 $2 {[%emt 0:00:41]} (37. Ke3) 37... Bb7 {[%emt 0:02:27]} (37... g5+ $142 38. Ke3 Kf6) 38. hxg6 {[%emt 0:00:21]} hxg6 {[%emt 0:00:02]} 39. g5 $2 {[%emt 0:01:24]} (39. Ne2) 39... Rc4 {[%emt 0:04:57]} 40. Ke5 {[%emt 0:00:36]} Rc1 {[%emt 0:01:44]} 41. Kf4 {[%emt 0:07:43]} Rc5 {[%emt 0:04:44]} 42. Nb5 {[%emt 0:07:27]} Rc4+ {[%emt 0:05:03]} 43. Ke3 {[%emt 0:05:08]} Rg4 {[%emt 0:00:22]} 44. Nd4 {[%emt 0:03:50]} Rxg5 {[%emt 0:00:30]} 45. Kf4 {[%emt 0:10:25]} Rc5 {[%emt 0:00:27]} 46. Ne2 {[%emt 0:02:00]} Rf5+ {[%emt 0:06:43]} 47. Kg3 {[%emt 0:00:42]} Re5 {[%emt 0:00:45]} (47... Rf3+ $142 48. Kg4 Re3) 48. Nf4 {[%emt 0:00:15]} Kf6 {[%emt 0:02:44]} 49. Kg4 {[%emt 0:01:07]} Re4 {[%emt 0:02:50]} 50. Kg3 {[%emt 0:00:48]} Re3+ {[%emt 0:00:07]} 51. Kh2 {[%emt 0:01:56]} Bf3 {[%emt 0:03:43]} (51... Be4 $142 52. Bc8 Ke7) 52. Kg3 {[%emt 0:04:18]} g5 {[%emt 0:00:32] ( -> ...Bd5+)} 53. Nh3 {[%emt 0:02:17]} Bd5+ {[%emt 0:03:26]} (53... Be4+ $142 54. Kh2 g4 55. Ng1 Rb3 56. Ne2 Rb2 57. Bb5 Bf3 58. Kg3 Bxe2 59. Bd7 Rb3+ 60. Kf2 Bc4 61. Ke1 g3 62. Ba4 g2 63. Kf2 Rb2+ 64. Bc2 Bd5 65. Kg1 Rxc2 66. e7 Rc1+ 67. Kf2 g1=Q+ 68. Ke2 Qg2+ 69. Ke3 Rc3+ 70. Kf4 Qg5#) 54. Kf2 {[%emt 0:00:36]} Rxh3 {[%emt 0:00:20]} 55. e7 {[%emt 0:00:04]} Rf3+ {[%emt 0:00:03] Weighted Error Value: White=1.14/Black=0.60} 0-1